bitfinex-derivatives/quotes_ETHF0:USTF0_20250910
["timestamp","ask_amount","ask_price","bid_price","bid_amount"]
[1757482267353,0.7104,4315.5,4315.4,0.6952]
[1757482271448,0.3039,4315.8,4315.5,0.5266]
[1757482271656,0.3039,4315.8,4315.7,0.3973]
[1757482271854,0.3039,4315.8,4315.7,0.6952]
[1757482271855,0.5,4315.8,4315.7,0.6952]
[1757482272349,0.3039,4316.7,4316.2,0.4954]
[1757482272558,0.3039,4317.0,4316.2,1.72413007]
[1757482272762,0.3039,4316.9,4316.2,6.96955939]
[1757482272950,0.3039,4316.9,4316.2,13.46955939]
[1757482273150,0.3039,4316.9,4316.2,13.70123939]
[1757482273951,0.3039,4316.9,4316.2,13.46955939]
[1757482274149,0.50347669,4316.3,4316.2,8.44062932]
[1757482274455,0.71387669,4316.3,4316.2,7.1952]
[1757482275156,0.50347669,4316.3,4316.2,7.1952]
[1757482276659,0.71387669,4316.3,4316.2,7.1952]
[1757482278556,0.3018,4316.2,4315.9,1.24542932]
[1757482278751,0.40997669,4316.3,4315.6,1.24542932]
[1757482278752,0.3018,4315.9,4315.6,1.24542932]
[1757482278956,0.7093,4315.7,4315.6,0.7034]
[1757482279859,0.3018,4315.6,4315.5,1.24542932]
[1757482280055,0.7093,4315.6,4315.4,1.24542932]
[1757482280262,0.7093,4315.4,4315.3,0.4988]
[1757482280462,0.7093,4315.4,4315.3,0.2071]
[1757482281052,0.4075,4315.4,4315.0,1.24542932]
[1757482281258,0.3018,4315.3,4315.1,1.24542932]
[1757482281459,0.7093,4315.2,4315.1,1.45252932]
[1757482281763,0.7093,4315.2,4315.1,1.94882932]
[1757482281963,0.7093,4315.2,4315.1,0.7034]
[1757482282567,1.33924811,4316.0,4315.1,0.4117]
[1757482282764,0.3018,4315.9,4315.2,0.2917]
[1757482282966,0.7093,4315.9,4315.8,0.4988]
[1757482283358,0.7093,4315.9,4315.8,0.2071]
[1757482283564,0.7093,4315.9,4315.1,1.24542932]
[1757482283764,0.4075,4315.3,4315.2,0.7034]
[1757482283968,0.3018,4315.9,4315.2,0.4117]
[1757482284168,0.7093,4315.9,4315.8,0.2071]
[1757482287068,0.1182,4316.5,4316.1,0.7034]
[1757482287069,0.4474,4316.2,4316.1,0.7034]
[1757482287370,0.9443,4316.2,4316.1,0.7034]
[1757482289868,0.235,4316.4,4316.1,0.4117]
[1757482290174,0.3018,4316.5,4316.2,0.7034]
[1757482290471,0.235,4316.6,4316.2,0.7034]
[1757482290769,0.5368,4316.6,4316.2,0.7034]
[1757482291970,0.21587669,4316.3,4316.2,0.7034]
[1757482292273,0.51767669,4316.3,4316.2,0.7034]
[1757482292464,0.71277669,4316.3,4316.2,0.4117]
[1757482292669,0.71277669,4316.3,4316.2,0.2071]
[1757482294174,0.71277669,4316.3,4316.2,0.7034]
[1757482296870,0.71277669,4316.3,4315.9,0.2917]
[1757482298074,0.1206,4316.0,4315.9,0.2071]
[1757482298378,0.8299,4316.0,4315.9,0.2071]
[1757482299677,0.7093,4316.0,4315.9,0.7034]
[1757482301076,0.8299,4316.0,4315.9,0.7034]
[1757482303479,0.8299,4316.0,4315.9,1.94882932]
[1757482305684,0.8299,4316.0,4315.9,1.65712932]
[1757482306179,0.8299,4316.0,4315.9,1.94882932]
[1757482306478,0.7093,4316.0,4315.9,1.94882932]
[1757482306983,0.8347,4316.0,4315.9,1.94882932]
[1757482311481,0.7093,4316.0,4315.9,0.7034]
[1757482315379,0.8347,4316.0,4315.9,0.7034]
[1757482319878,0.7093,4316.0,4315.9,0.7034]
[1757482320077,0.5142,4316.0,4315.9,0.7034]
[1757482321886,0.725,4316.0,4315.9,0.7034]
[1757482324391,0.5142,4316.0,4315.9,0.7034]
[1757482324782,0.00347669,4316.3,4316.2,0.7075]
[1757482325182,0.52387669,4316.3,4316.2,0.7075]
[1757482326186,0.73467669,4316.3,4316.2,0.7075]
[1757482326386,0.1254,4316.0,4315.9,0.294]
[1757482326588,0.8566,4316.0,4315.9,0.4944]
[1757482326784,0.8566,4316.0,4315.9,0.2004]
[1757482326986,0.8566,4316.0,4315.9,0.4944]
[1757482327286,0.8566,4316.0,4315.9,0.7075]
[1757482327685,0.7312,4316.0,4315.9,0.7075]
[1757482328986,0.3225,4316.2,4316.0,0.1169]
[1757482329294,0.00347669,4316.3,4316.2,0.7075]
[1757482332386,0.52387669,4316.3,4316.2,0.7075]
[1757482332586,0.3225,4316.2,4316.1,0.2004]
[1757482332787,0.7312,4316.2,4316.1,0.2004]
[1757482333493,0.7312,4315.9,4315.8,0.2004]
[1757482334191,0.7312,4315.9,4315.8,0.7075]
[1757482344399,0.7312,4315.9,4315.8,2.37036259]
[1757482347610,0.7312,4315.9,4315.8,1.86326259]
[1757482347611,1.76042878,4315.9,4315.8,1.86326259]
[1757482347808,1.43792878,4315.9,4315.8,1.25082469]
[1757482348515,1.75962878,4315.9,4315.8,1.25082469]
[1757482349309,1.43792878,4315.9,4315.7,1.25082469]
[1757482349508,0.7402,4315.8,4315.7,1.25082469]
[1757482352212,0.4185,4315.8,4315.6,1.25082469]
[1757482352414,0.7402,4315.7,4315.6,1.25082469]
[1757482354420,0.4185,4315.7,4315.5,1.25082469]
[1757482354614,0.7402,4315.6,4315.5,1.46042469]
[1757482354814,0.7402,4315.6,4315.5,1.77852469]
[1757482355122,1.76942878,4315.6,4315.5,1.77852469]
[1757482355619,1.76942878,4315.6,4315.5,1.46042469]
[1757482357723,1.76942878,4315.6,4315.5,1.77852469]
[1757482358015,1.76942878,4315.6,4315.5,1.25082469]
[1757482358220,0.7402,4315.4,4315.3,1.25082469]
[1757482358618,0.7402,4315.4,4315.3,1.46042469]
[1757482358918,0.7402,4315.4,4315.3,1.77852469]
[1757482359118,0.7402,4315.4,4315.3,0.5277]
[1757482360522,0.7402,4315.4,4315.3,0.7359]
[1757482361119,0.7402,4315.4,4315.2,1.25082469]
[1757482361326,1.76942878,4315.3,4315.2,1.25082469]
[1757482362118,1.76942878,4315.3,4315.1,1.25082469]
[1757482362119,1.44772878,4315.3,4315.1,1.25082469]
[1757482362319,1.44772878,4315.3,4315.1,1.46042469]
[1757482362320,0.7402,4315.2,4315.1,1.46042469]
[1757482363122,0.7402,4315.2,4315.1,1.77852469]
[1757482363428,0.7402,4315.2,4315.1,1.98672469]
[1757482370027,0.7402,4315.2,4315.1,0.2096]
[1757482370726,1.02922878,4315.3,4314.7,1.25082469]
[1757482370727,0.4099,4314.9,4314.7,1.25082469]
[1757482370926,0.7106,4314.6,4314.5,0.4976]
[1757482371125,0.7106,4314.6,4314.5,0.7067]
[1757482371830,0.7106,4314.6,4314.5,0.1991]
[1757482372225,0.7106,4314.6,4314.5,0.4976]
[1757482372424,0.7106,4314.6,4314.5,0.1991]
[1757482373328,0.7106,4314.6,4314.5,0.7067]
[1757482373524,0.7106,4315.4,4315.3,0.5076]
[1757482373831,2.47701284,4315.4,4315.3,0.7067]
[1757482375228,2.47701284,4315.4,4315.3,0.1991]
[1757482377033,2.47701284,4315.4,4315.0,0.2985]
[1757482377233,1.73982878,4315.1,4315.0,0.7067]
[1757482380434,1.02922878,4315.1,4315.0,0.8349]
[1757482380628,1.32992878,4315.1,4315.0,0.8349]
[1757482380828,1.54302878,4315.1,4315.0,0.8349]
[1757482381028,1.73982878,4315.1,4315.0,0.7067]
[1757482382638,1.73982878,4315.1,4315.0,0.1991]
[1757482382833,0.7106,4314.8,4314.7,0.4976]
[1757482383041,1.73982878,4314.8,4314.7,0.1991]
[1757482383532,1.73982878,4314.8,4314.7,0.4976]
[1757482384034,1.73982878,4314.8,4314.7,0.1991]
[1757482384336,1.73982878,4314.8,4314.7,0.4976]
[1757482385130,0.5374,4314.5,4314.4,1.74842469]
[1757482385434,0.8381,4314.5,4314.4,0.4976]
[1757482385641,0.8381,4314.5,4314.4,0.7067]
[1757482386034,0.7106,4314.5,4314.4,0.7067]
[1757482394234,0.7106,4314.5,4314.4,1.95752469]
[1757482395741,0.234,4314.9,4314.4,1.65902469]
[1757482395742,0.3007,4314.9,4314.4,1.65902469]
[1757482395945,0.6439,4315.4,4315.3,0.4082]
[1757482396142,0.7106,4315.4,4315.3,0.7067]
[1757482396845,0.5138,4315.4,4315.3,0.7067]
[1757482397045,0.234,4315.6,4315.3,0.4082]
[1757482397244,0.5259,4315.5,4315.4,0.7098]
[1757482398040,0.234,4316.2,4315.8,0.2975]
[1757482398247,0.652,4316.2,4316.1,0.7098]
[1757482398437,1.1555929,4316.2,4316.1,0.7098]
[1757482398947,1.4688929,4316.2,4316.1,0.7098]
[1757482400345,1.4688929,4316.2,4316.1,0.4123]
[1757482400943,1.4688929,4316.2,4316.1,0.2117]
[1757482401151,0.7313,4315.6,4315.5,0.2117]
[1757482401345,0.7313,4315.6,4315.3,1.24819214]
[1757482401346,0.7313,4315.6,4315.3,0.2975]
[1757482401542,0.7313,4315.3,4315.2,1.45989214]
[1757482401741,0.7313,4315.3,4315.2,1.95799214]
[1757482404238,0.5259,4315.3,4315.2,0.7098]
[1757482404442,0.2126,4315.3,4315.2,0.7098]
[1757482404650,0.234,4315.6,4315.5,0.8386]
[1757482405549,0.7599,4315.6,4315.5,0.8386]
[1757482407051,0.7599,4315.6,4315.5,0.7098]
[1757482409952,0.234,4315.6,4315.5,0.8386]
[1757482410345,0.5259,4315.6,4315.5,0.8386]
[1757482412153,1.33974993,4316.0,4315.5,0.8386]
[1757482412454,0.3133,4315.9,4315.8,0.7098]
[1757482412654,0.7313,4315.9,4315.8,0.7098]
[1757482414156,0.7313,4315.9,4315.8,0.2117]
[1757482414360,0.7313,4315.9,4315.5,0.2975]
[1757482414557,0.3133,4315.8,4315.3,0.2975]
[1757482414750,0.5259,4315.2,4315.1,1.66049214]
[1757482415251,0.5259,4315.2,4315.1,1.95799214]
[1757482418157,0.5259,4315.2,4315.1,0.7098]
[1757482418356,0.5259,4315.2,4315.1,1.95705708]
[1757482419152,1.95004993,4315.2,4315.1,1.45895708]
[1757482419351,1.95004993,4315.2,4314.5,1.24725708]
[1757482419352,0.7313,4314.7,4314.5,1.24725708]
[1757482419556,1.95004993,4314.6,4314.5,1.24725708]
[1757482419851,1.95004993,4314.6,4314.4,1.45895708]
[1757482419852,0.8523,4314.5,4314.4,1.45895708]
[1757482420059,0.539,4314.5,4314.3,1.24725708]
[1757482420254,0.7313,4314.3,4314.2,1.24725708]
[1757482422854,0.7313,4314.3,4314.0,1.24725708]
[1757482423053,0.7313,4313.8,4313.7,1.24725708]
[1757482423249,0.3133,4313.7,4313.2,0.2975]
[1757482423449,0.5259,4313.3,4313.2,0.7098]
[1757482423657,0.7313,4313.3,4313.2,0.7098]
[1757482424961,0.3133,4313.8,4313.3,0.2975]
[1757482425162,0.5259,4313.8,4313.7,0.7098]
[1757482425361,0.7313,4313.8,4313.7,0.7098]
[1757482426864,0.121,4313.5,4312.9,0.2131]
[1757482427170,0.7051,4313.0,4312.9,0.7345]
[1757482428663,0.8328,4313.0,4312.9,0.4124]
[1757482428868,0.8328,4313.0,4312.9,0.7345]
[1757482430057,0.7051,4313.0,4312.9,0.7345]
[1757482434761,0.5065,4313.4,4313.3,0.4124]
[1757482434962,0.5065,4313.4,4313.3,0.7345]
[1757482436672,0.7051,4313.4,4313.3,0.7345]
[1757482437068,0.00347669,4313.9,4313.5,0.1282]
[1757482437269,0.8328,4315.5,4315.4,0.2131]
[1757482437475,0.8328,4315.5,4315.4,0.7345]
[1757482437667,0.8328,4315.5,4315.1,0.3221]
[1757482437972,0.7051,4315.2,4315.1,0.2131]
[1757482438167,0.1277,4315.0,4314.8,0.3221]
[1757482438371,0.7051,4314.4,4314.3,0.5352]
[1757482438671,0.1277,4314.5,4313.7,0.7345]
[1757482438672,0.4081,4313.8,4313.7,0.7345]
[1757482438866,0.7051,4313.8,4313.7,0.7345]
[1757482439260,0.5065,4313.8,4313.7,0.7345]
[1757482439470,0.2095,4313.8,4313.7,0.7345]
[1757482439672,1.34644993,4314.5,4313.7,0.4124]
[1757482439866,0.297,4314.4,4313.8,0.3221]
[1757482440369,0.5065,4313.9,4313.8,0.7345]
[1757482440967,0.7051,4313.9,4313.8,0.4124]
[1757482441362,0.7051,4313.9,4313.8,0.7345]
[1757482442670,0.7051,4313.9,4313.8,0.2131]
[1757482443772,0.4081,4313.9,4313.4,1.24725708]
[1757482443970,0.8328,4313.5,4313.4,0.2131]
[1757482444172,0.8328,4313.5,4313.4,0.5352]
[1757482444366,0.8328,4313.5,4313.4,0.7345]
[1757482446171,0.1277,4313.5,4313.1,1.24725708]
[1757482446378,0.7051,4313.2,4313.1,0.7345]
[1757482447874,0.297,4313.8,4313.2,0.3221]
[1757482448074,0.7051,4313.8,4313.7,0.2131]
[1757482448276,0.7051,4313.8,4313.7,0.5352]
[1757482448471,0.7051,4313.8,4313.7,0.7345]
[1757482448676,0.7051,4314.0,4313.9,0.7345]
[1757482450275,0.8328,4314.0,4313.9,0.7345]
[1757482453681,0.5065,4314.0,4313.9,0.7345]
[1757482454569,0.297,4314.4,4313.9,0.4124]
[1757482454783,0.7051,4314.4,4314.3,0.7345]
[1757482455174,0.7051,4314.4,4313.9,0.3221]
[1757482455478,0.7051,4314.4,4313.7,1.24725708]
[1757482455479,0.7051,4314.3,4314.2,0.2131]
[1757482457377,0.7051,4314.3,4314.2,0.7447]
[1757482457578,1.2459284,4315.5,4314.2,4.23179]
[1757482457776,1.2459284,4315.9,4315.6,0.7346]
[1757482457981,0.8331,4316.5,4316.4,0.203]
[1757482458280,0.8331,4316.5,4316.1,0.3232]
[1757482458580,0.8331,4316.5,4316.2,0.28922998]
[1757482458781,0.8331,4316.5,4316.3,0.28922998]
[1757482458978,0.8331,4316.5,4316.1,0.3232]
[1757482458979,0.8331,4316.5,4316.4,0.28922998]
[1757482460284,0.8331,4316.5,4316.4,0.203]
[1757482460481,0.8331,4316.5,4316.4,0.50888755]
[1757482460482,1.86216314,4316.5,4316.4,0.50888755]
[1757482460987,1.86216314,4316.5,4316.4,1.04048755]
[1757482461178,1.86216314,4316.5,4316.4,0.71728755]
[1757482461477,1.86216314,4316.5,4316.4,0.50888755]
[1757482462386,1.86216314,4316.5,4316.4,0.203]
[1757482468082,1.86216314,4316.5,4316.1,0.3232]
[1757482470791,1.55586314,4316.5,4315.7,0.3232]
[1757482470984,0.7083,4316.4,4316.3,0.203]
[1757482471989,0.7083,4316.4,4316.1,0.3232]
[1757482473585,0.7083,4316.4,4316.3,0.203]
[1757482473779,0.5025,4316.5,4316.4,0.7346]
[1757482474682,0.1248,4317.0,4316.4,0.7346]
[1757482474880,0.5025,4316.9,4316.8,0.203]
[1757482475084,0.7083,4316.9,4316.8,0.5262]
[1757482475586,0.7083,4316.9,4316.4,0.3232]
[1757482475806,0.8331,4316.5,4316.4,0.5262]
[1757482476385,0.8331,4316.5,4316.4,0.203]
[1757482476590,0.402,4316.2,4316.1,0.5262]
[1757482476783,0.7083,4316.2,4316.1,1.03959199]
[1757482477884,0.7083,4316.2,4316.1,0.30499199]
[1757482478086,0.7083,4316.2,4316.1,0.50799199]
[1757482478284,0.7083,4316.2,4316.1,1.03959199]
[1757482478790,1.15386314,4316.5,4316.1,1.03959199]
[1757482478985,0.7083,4316.4,4316.2,0.30499199]
[1757482479185,0.7083,4316.4,4316.3,0.3053073]
[1757482479385,0.7083,4316.4,4316.3,0.5083073]
[1757482479587,0.7083,4316.4,4316.3,1.0399073]
[1757482487293,1.19984655,4316.4,4316.3,1.0399073]
[1757482490599,0.49154655,4316.4,4316.3,1.0399073]
[1757482490816,0.3192,4317.1,4316.8,0.306]
[1757482490993,1.3336099,4317.0,4316.9,0.5079073]
[1757482491300,1.3336099,4317.0,4316.9,0.3053073]
[1757482492300,1.3336099,4317.0,4316.9,0.5079073]
[1757482492889,1.3336099,4317.0,4316.9,0.3053073]
[1757482495698,1.3336099,4317.0,4316.9,0.8139073]
[1757482496004,1.3336099,4317.0,4316.9,0.5079073]
[1757482497606,1.3336099,4317.0,4316.9,0.8139073]
[1757482497801,1.3336099,4317.0,4316.9,0.5079073]
[1757482499505,1.3336099,4317.0,4316.9,0.3053073]
[1757482501103,1.5696099,4317.0,4316.9,0.3053073]
[1757482504903,1.5696099,4317.0,4316.4,1.24818621]
[1757482505111,0.714,4316.5,4316.4,1.55418621]
[1757482505309,0.95,4316.5,4316.4,1.55418621]
[1757482506705,0.95,4316.5,4316.4,1.75678621]
[1757482509112,0.3192,4316.4,4316.3,1.24818621]
[1757482509304,0.3192,4316.4,4315.9,1.66286259]
[1757482509305,0.714,4316.3,4316.2,1.24818621]
[1757482509505,0.88619113,4316.3,4316.1,0.306]
[1757482509803,0.714,4316.2,4316.1,0.5086]
[1757482510409,0.714,4316.2,4316.1,0.7104]
[1757482516811,0.714,4316.2,4316.1,1.0091385]
[1757482520217,0.236,4316.5,4316.1,1.0091385]
[1757482520418,0.49089231,4316.4,4316.3,0.7274]
[1757482520716,0.49089231,4316.4,4316.3,1.0261385]
[1757482521218,0.69829231,4316.4,4316.3,1.0261385]
[1757482521620,0.69829231,4316.4,4316.3,1.02605727]
[1757482524117,0.49089231,4316.4,4316.3,1.02605727]
[1757482524423,0.4434,4316.5,4316.4,0.3063]
[1757482524615,0.4434,4316.5,4316.4,1.02605727]
[1757482524818,0.93415711,4316.5,4316.4,1.02605727]
[1757482525718,0.72675711,4316.5,4316.4,1.02605727]
[1757482527528,0.236,4316.5,4316.4,1.02605727]
[1757482528321,0.236,4316.5,4316.4,2.27424348]
[1757482530529,0.7173,4317.2,4317.1,0.2148]
[1757482530732,1.20806715,4317.2,4317.1,1.02605727]
[1757482533036,0.49076715,4317.2,4317.1,1.02605727]
[1757482533235,0.236,4317.3,4317.1,0.71975727]
[1757482533538,0.9533,4317.3,4317.2,1.02605727]
[1757482533731,1.44391548,4317.3,4317.2,1.02605727]
[1757482534332,0.9533,4317.3,4317.2,1.02605727]
[1757482534534,1.44383124,4317.3,4317.2,1.02605727]
[1757482536341,0.9533,4317.3,4317.2,1.02605727]
[1757482540634,2.17184135,4317.3,4317.2,0.60495727]
[1757482540830,2.17184135,4317.3,4317.2,0.29865727]
[1757482541035,2.17184135,4317.3,4317.2,0.60495727]
[1757482541236,2.17184135,4317.3,4317.2,0.29865727]
[1757482541439,0.7173,4316.6,4316.5,0.5211]
[1757482541738,1.93584135,4316.6,4316.5,1.02569709]
[1757482543041,0.7173,4316.6,4316.5,1.02569709]
[1757482545532,0.7173,4316.6,4316.5,1.14709709]
[1757482546844,0.7173,4316.6,4316.5,1.02569709]
[1757482547646,0.7173,4316.6,4316.5,1.14849709]
[1757482555650,0.4223,4316.6,4316.5,1.14849709]
[1757482555850,0.2074,4316.6,4316.5,1.14849709]
[1757482556245,0.235,4316.7,4316.5,1.14849709]
[1757482556553,0.235,4316.7,4316.6,1.03429709]
[1757482557153,0.4339,4316.7,4316.6,1.03429709]
[1757482557351,0.7521,4316.7,4316.6,1.03429709]
[1757482557651,0.4339,4316.7,4316.6,1.03429709]
[1757482559248,0.4339,4316.7,4316.6,1.02448771]
[1757482560453,0.235,4316.7,4316.6,1.02448771]
[1757482560650,0.5171,4317.4,4317.3,0.4214]
[1757482560856,1.44300211,4317.4,4317.3,0.736]
[1757482561051,1.44300211,4317.4,4317.3,1.02447228]
[1757482561250,1.44300211,4317.4,4317.3,0.28847228]
[1757482561554,1.44300211,4317.4,4317.0,0.3146]
[1757482561555,0.1989,4316.7,4316.6,0.736]
[1757482561757,0.1989,4316.7,4316.6,1.0244795]
[1757482562657,0.7183,4316.7,4316.6,1.0244795]
[1757482562954,0.4001,4316.7,4316.6,1.0244795]
[1757482564058,0.1989,4316.7,4316.6,1.0244795]
[1757482565560,0.1989,4316.7,4316.6,1.02452064]
[1757482568156,1.61864135,4317.2,4317.1,0.2112]
[1757482568357,2.10854773,4317.2,4317.1,0.81432064]
[1757482568658,2.42674773,4317.2,4317.1,0.81432064]
[1757482571950,2.42674773,4317.2,4317.1,1.02452064]
[1757482578065,2.42674773,4317.2,4317.1,0.81432064]
[1757482579468,2.42674773,4317.2,4317.1,1.01962064]
[1757482579767,2.10854773,4317.2,4317.1,1.01962064]
[1757482579966,0.68880638,4317.2,4317.1,1.01962064]
[1757482582372,1.71759894,4317.2,4317.1,1.01962064]
[1757482582968,2.22139894,4317.2,4317.1,1.01962064]
[1757482583968,2.22139894,4317.2,4317.1,0.28852064]
[1757482585973,0.7016,4316.5,4316.4,0.2973]
[1757482586173,2.45529894,4316.5,4316.4,0.5849689]
[1757482587864,2.52429894,4316.5,4316.4,0.2876689]
[1757482589474,2.52429894,4316.5,4316.4,0.5849689]
[1757482589777,2.45529894,4316.5,4316.4,0.7835689]
[1757482590578,2.45529894,4316.5,4316.4,0.9888689]
[1757482590775,1.13160638,4316.5,4316.4,0.9888689]
[1757482591071,2.45529894,4316.5,4316.4,0.9888689]
[1757482592080,2.45529894,4316.5,4316.4,0.7012]
[1757482594172,1.13160638,4316.5,4316.4,0.7012]
[1757482594375,0.48990638,4316.5,4316.4,0.98835941]
[1757482594584,1.52149256,4317.1,4317.0,0.8246]
[1757482594772,2.45511957,4317.1,4317.0,0.8246]
[1757482595982,2.45511957,4317.1,4317.0,0.4959]
[1757482597673,0.4067,4316.7,4316.6,0.4959]
[1757482597873,1.96539256,4316.7,4316.6,0.78300018]
[1757482598876,1.96539256,4316.7,4316.6,0.98830018]
[1757482599281,1.67049256,4316.7,4316.6,0.98830018]
[1757482599476,1.26379256,4316.7,4316.6,0.98830018]
[1757482600783,1.46159256,4316.7,4316.6,0.98830018]
[1757482601381,1.96539256,4316.7,4316.6,0.98830018]
[1757482603177,1.96539256,4316.7,4316.6,0.9882811]
[1757482603585,1.96539256,4316.7,4316.6,0.7829811]
[1757482604177,1.96539256,4316.7,4316.6,0.9882811]
[1757482604481,1.75362242,4316.7,4316.6,0.9882811]
[1757482604682,0.72482986,4316.7,4316.6,0.9882811]
[1757482605282,0.92262986,4316.7,4316.6,0.9882811]
[1757482605881,1.21752986,4316.7,4316.6,0.9882811]
[1757482606576,0.92262986,4316.7,4316.6,0.9882811]
[1757482606773,1.95142242,4316.7,4316.6,0.9882811]
[1757482607085,2.24312242,4316.7,4316.6,0.9882811]
[1757482607978,2.43812242,4316.7,4316.6,0.2870811]
[1757482608281,2.43812242,4316.7,4316.6,0.6025811]
[1757482608583,2.43812242,4316.7,4316.6,0.8151811]
[1757482610782,2.43812242,4316.7,4316.6,0.81533986]
[1757482612782,1.40912986,4316.7,4316.6,1.01253986]
[1757482613178,0.9193,4316.7,4316.6,1.01253986]
[1757482613378,1.40931845,4316.7,4316.6,1.01253986]
[1757482619190,0.92261845,4316.7,4316.6,1.01253986]
[1757482620389,0.72501845,4316.7,4316.6,1.01253986]
[1757482621390,0.92261845,4316.7,4316.6,1.01253986]
[1757482621789,1.21431845,4316.7,4316.6,1.01253986]
[1757482622486,0.92261845,4316.7,4316.6,1.01253986]
[1757482622688,0.72501845,4316.7,4316.6,1.01253986]
[1757482623191,1.40931845,4316.7,4316.6,1.01253986]
[1757482624490,1.40931845,4316.7,4316.6,0.81533986]
[1757482625880,0.9193,4316.7,4316.6,0.81533986]
[1757482626086,1.40996297,4316.7,4316.6,0.60273986]
[1757482627398,1.40996297,4316.7,4316.6,0.28723986]
[1757482628498,1.40996297,4316.7,4316.6,0.60273986]
[1757482630592,1.40996297,4316.7,4316.6,0.81533986]
[1757482632492,1.40996297,4316.7,4316.6,1.01253986]
[1757482632898,1.11826297,4316.7,4316.6,1.01253986]
[1757482633593,0.49066297,4316.7,4316.6,1.01253986]
[1757482633792,0.72566297,4316.7,4316.6,1.01253986]
[1757482635999,1.21496297,4316.7,4316.6,1.01289501]
[1757482637606,1.40996297,4316.7,4316.6,1.01289501]
[1757482637905,2.43875553,4316.7,4316.6,0.28759501]
[1757482638103,2.43875553,4316.7,4316.6,0.60329501]
[1757482638306,2.43875553,4316.7,4316.6,0.28759501]
[1757482638498,6.67041554,4316.7,4316.6,0.28759501]
[1757482639712,6.43875553,4316.7,4316.6,0.28759501]
[1757482644211,2.43875553,4316.7,4316.6,0.28759501]
[1757482644416,1.40996297,4316.7,4316.6,0.80299501]
[1757482646307,1.40996297,4316.7,4316.6,0.60329501]
[1757482646718,1.40996297,4316.7,4316.6,0.28759501]
[1757482646918,1.40996297,4316.7,4316.6,0.60329501]
[1757482648318,1.40996297,4316.7,4316.6,0.80299501]
[1757482648718,1.40963486,4316.7,4316.6,0.80299501]
[1757482650421,1.40963486,4316.7,4316.6,0.80280039]
[1757482654426,0.92293486,4316.7,4316.6,1.01560039]
[1757482654627,0.72533486,4316.7,4316.6,1.01560039]
[1757482656621,0.49033486,4316.7,4316.6,1.01560039]
[1757482656927,0.72433486,4316.7,4316.6,1.01560039]
[1757482666933,1.45183486,4316.7,4316.6,1.01560039]
[1757482667229,1.45183486,4316.7,4316.6,0.60310039]
[1757482667437,1.45183486,4316.7,4316.6,0.28740039]
[1757482668034,1.45183486,4316.7,4316.6,0.57840039]
[1757482671238,1.45183486,4316.7,4316.6,0.77590039]
[1757482677442,1.45183486,4316.7,4316.6,0.77614427]
[1757482680242,1.45183486,4316.7,4316.6,0.97324427]
[1757482684331,1.45253,4316.7,4316.6,0.97324427]
[1757482691854,1.14523,4316.7,4316.6,0.97324427]
[1757482692149,1.45253,4316.7,4316.6,0.97324427]
[1757482694058,1.45253,4316.7,4316.6,0.77614427]
[1757482697568,1.45253,4316.7,4316.6,0.28764427]
[1757482702665,1.45253,4316.7,4316.6,0.28819471]
[1757482705459,0.5665,4316.2,4316.1,1.55128621]
[1757482705665,0.8005,4316.2,4316.1,1.76398621]
[1757482706063,0.6423,4316.2,4316.1,1.76398621]
[1757482706364,1.67162077,4316.2,4316.1,1.76398621]
[1757482706665,1.67162077,4316.2,4316.1,1.97818621]
[1757482706971,1.26332077,4316.2,4316.1,1.97818621]
[1757482707170,0.234,4316.2,4316.1,1.97818621]
[1757482710671,0.234,4316.2,4316.1,0.73]
[1757482710875,0.2041,4317.1,4317.0,0.8551]
[1757482711167,0.92864281,4317.1,4317.0,0.8551]
[1757482713572,0.72454281,4317.1,4317.0,0.8551]
[1757482714075,0.234,4317.1,4317.0,0.8551]
[1757482717473,0.234,4317.1,4317.0,1.13892996]
[1757482719167,1.02932077,4317.8,4317.7,0.73]
[1757482719379,1.75312685,4317.8,4317.7,0.73]
[1757482720073,1.95722685,4317.8,4317.7,0.73]
[1757482722668,2.46492685,4317.8,4317.7,0.5158]
[1757482722876,2.46492685,4317.8,4317.1,0.3031]
[1757482723175,1.74112077,4317.3,4317.2,1.0129849]
[1757482723371,1.43762077,4317.3,4317.2,1.0129849]
[1757482727288,0.2041,4317.3,4317.2,1.0129849]
[1757482727473,0.4153,4317.3,4317.2,1.0129849]
[1757482731170,1.02932077,4317.5,4317.2,1.0129849]
[1757482731482,0.5303,4317.4,4317.3,0.6969]
[1757482731780,0.7247,4317.4,4317.3,0.6969]
[1757482734983,0.1944,4317.4,4317.3,0.6969]
[1757482735382,0.1944,4317.4,4317.3,0.97988115]
[1757482737285,1.02932077,4317.5,4317.4,0.2965]
[1757482737586,0.49011833,4317.5,4317.4,0.97988115]
[1757482737786,0.49011833,4317.5,4317.4,0.6969]
[1757482738389,0.68451833,4317.5,4317.4,0.98004294]
[1757482738685,1.21481833,4317.5,4317.4,0.98004294]
[1757482738985,2.2441391,4317.5,4317.4,0.98004294]
[1757482740785,1.9250391,4317.5,4317.4,0.98004294]
[1757482742786,2.2441391,4317.5,4317.4,0.57964294]
[1757482742994,2.2441391,4317.5,4317.4,0.78454294]
[1757482743187,2.2441391,4317.5,4317.4,0.98004294]
[1757482743383,0.68451833,4317.5,4317.4,0.98004294]
[1757482749991,0.49011833,4317.5,4317.4,0.98004294]
[1757482750391,0.68451833,4317.5,4317.4,0.98004294]
[1757482752192,1.21481833,4317.5,4317.4,0.98004294]
[1757482754597,0.89571833,4317.5,4317.4,0.98004294]
[1757482755699,0.68451833,4317.5,4317.4,0.98004294]
[1757482759106,0.234,4317.8,4317.4,2.22985029]
[1757482759308,0.49108675,4317.7,4317.6,0.7218]
[1757482759507,0.49108675,4317.7,4317.6,1.00494294]
[1757482759902,33.581,4318.5,4318.4,0.4021]
[1757482760103,34.50531005,4318.5,4318.4,1.00494294]
[1757482760303,34.82451005,4318.5,4318.4,1.00494294]
[1757482762413,34.82451005,4318.5,4318.4,0.7218]
[1757482762910,1.44651005,4318.5,4318.4,0.7218]
[1757482763814,1.44651005,4318.5,4318.4,0.5253]
[1757482769313,0.9557,4318.5,4318.4,0.5253]
[1757482771111,0.9557,4318.5,4318.4,0.7218]
[1757482771910,0.437,4318.5,4318.4,0.7218]
[1757482772116,0.234,4318.5,4318.4,0.7218]